bitfinex-derivatives/quotes_SOLF0:USTF0_20220108
["timestamp","ask_amount","ask_price","bid_price","bid_amount"]
[1641662094800,7.18055506,139.35,139.27,69.1343]
[1641662095001,7.18055506,139.35,139.28,4.0]
[1641662095202,1.794,139.34,139.29,4.0]
[1641662095401,8.97455506,139.35,139.28,6.9714182]
[1641662096101,8.97455506,139.35,139.28,4.0]
[1641662096301,8.97455506,139.35,139.22,14.99868882]
[1641662096503,7.18365001,139.29,139.22,14.99868882]
[1641662096701,1.795,139.28,139.22,14.99868882]
[1641662096902,7.18519849,139.26,139.22,14.99868882]
[1641662097202,27.66479,139.24,139.22,14.99868882]
[1641662097401,27.66479,139.24,139.2,14.99868882]
[1641662097603,7.18726417,139.22,139.2,4.87448882]
[1641662098303,7.18726417,139.22,139.18,14.26383087]
[1641662098503,7.18726417,139.22,139.15,14.26383087]
[1641662098703,1.796,139.21,139.15,14.26383087]
[1641662099306,27.66479,139.2,139.15,14.26383087]
[1641662099504,27.66479,139.2,139.16,4.0]
[1641662099704,29.46079,139.24,139.15,2.97229425]
[1641662099905,27.66479,139.24,139.16,4.0]
[1641662100305,34.85102118,139.24,139.16,4.0]
[1641662100504,34.85102118,139.24,139.17,2.97229425]
[1641662101505,62.51581118,139.24,139.16,4.0]
[1641662101706,62.51581118,139.24,139.12,11.29153662]
[1641662101707,1.795,139.26,139.21,4.0]
[1641662101907,7.18390805,139.29,139.2,4.0]
[1641662102310,7.18390805,139.29,139.25,4.0]
[1641662102807,30.53269667,139.31,139.19,4.0]
[1641662102808,5.00357036,139.32,139.28,4.0]
[1641662103008,20.0,139.44,139.28,4.0]
[1641662103009,5.00357036,139.33,139.28,4.0]
[1641662103207,5.00357036,139.33,139.21,140.466]
[1641662103408,27.66479,139.37,139.3,4.0]
[1641662103608,27.66479,139.37,139.28,27.66479]
[1641662103810,27.66479,139.37,139.29,4.0]
[1641662104009,27.66479,139.37,139.28,27.66479]
[1641662104209,27.66479,139.37,139.29,4.0]
[1641662104410,97.77479,139.39,139.28,27.66479]
[1641662105009,97.77479,139.39,139.29,4.0]
[1641662105411,1.794,139.44,139.38,8.0]
[1641662105611,1.793,139.47,139.38,4.0]
[1641662105811,7.17360115,139.49,139.34,5.793]
[1641662106013,7.17360115,139.49,139.4,4.0]
[1641662106213,7.17360115,139.49,139.39,4.0]
[1641662106411,7.17360115,139.49,139.38,4.0]
[1641662106615,1.793,139.47,139.38,4.0]
[1641662107014,1.793,139.48,139.38,4.0]
[1641662107414,27.66479,139.45,139.38,4.0]
[1641662108115,1.793,139.46,139.39,4.0]
[1641662108317,27.66479,139.47,139.39,4.0]
[1641662108515,27.66479,139.47,139.36,4.0]
[1641662108916,27.66479,139.47,139.4,4.0]
[1641662109116,27.66479,139.47,139.38,4.0]
[1641662109316,27.66479,139.47,139.35,70.4088]
[1641662109521,1.793,139.46,139.35,70.4088]
[1641662109717,1.793,139.46,139.39,4.0]
[1641662109920,1.793,139.46,139.38,4.0]
[1641662110117,55.32958,139.47,139.35,70.4088]
[1641662110318,1.793,139.46,139.35,70.4088]
[1641662110519,1.793,139.46,139.35,74.4088]
[1641662110718,1.793,139.46,139.35,70.4088]
[1641662110919,1.793,139.46,139.38,4.0]
[1641662111119,21.793,139.46,139.35,70.4088]
[1641662111418,7.1764326,139.43,139.3,27.66479]
[1641662111620,27.66479,139.38,139.3,27.66479]
[1641662111819,27.66479,139.38,139.3,31.66479]
[1641662112022,27.66479,139.38,139.3,27.66479]
[1641662112320,1.793,139.42,139.35,4.0]
[1641662112520,1.793,139.42,139.31,2.96670254]
[1641662112521,7.1764326,139.43,139.31,6.96670254]
[1641662112722,7.1764326,139.43,139.35,4.0]
[1641662112923,1.793,139.45,139.37,4.0]
[1641662112924,8.96840272,139.45,139.37,4.0]
[1641662113123,8.96840272,139.45,139.38,4.0]
[1641662113322,7.17540272,139.45,139.37,4.0]
[1641662113523,27.66479,139.46,139.37,4.0]
[1641662113723,27.66479,139.46,139.4,4.0]
[1641662114123,27.66479,139.46,139.42,4.0]
[1641662114323,27.66479,139.46,139.35,27.66479]
[1641662114324,27.66479,139.46,139.36,7.17180048]
[1641662114724,27.66479,139.46,139.37,4.0]
[1641662115223,27.66479,139.46,139.36,7.17180048]
[1641662115423,1.793,139.47,139.38,4.0]
[1641662115622,1.793,139.47,139.36,7.17180048]
[1641662115623,27.66479,139.48,139.41,27.66479]
[1641662115823,27.66479,139.48,139.41,4.0]
[1641662116425,27.66479,139.48,139.37,64.4339]
[1641662116627,1.793,139.47,139.37,68.4339]
[1641662116828,27.66479,139.48,139.37,68.4339]
[1641662117030,27.66479,139.48,139.44,4.0]
[1641662117327,27.66479,139.51,139.47,4.0]
[1641662117527,89.0,139.53,139.47,27.66479]
[1641662117728,5.73272945,139.55,139.47,27.66479]
[1641662117930,5.73272945,139.55,139.47,31.66479]
[1641662118228,5.73272945,139.55,139.48,4.0]
[1641662118430,1.791,139.54,139.48,4.0]
[1641662118627,5.73272945,139.55,139.47,27.66479]
[1641662118828,5.73272945,139.55,139.49,4.0]
[1641662119030,5.73272945,139.55,139.45,27.66479]
[1641662119230,5.73343318,139.54,139.46,4.0]
[1641662119430,7.52543318,139.54,139.46,4.0]
[1641662120034,7.52543318,139.54,139.47,4.0]
[1641662120234,5.73343318,139.54,139.47,4.0]
[1641662120434,5.73343318,139.54,139.45,27.66479]
[1641662120640,7.52543318,139.54,139.47,4.0]
[1641662120837,5.73343318,139.54,139.45,27.66479]
[1641662121037,5.73343318,139.54,139.43,27.66479]
[1641662121236,7.52587752,139.53,139.43,27.66479]
[1641662121638,12.90516369,139.53,139.43,27.66479]
[1641662121838,5.73517261,139.5,139.41,4.0]
[1641662122138,5.73517261,139.5,139.39,4.0]
[1641662122339,1.792,139.52,139.43,4.0]
[1641662122738,5.73481726,139.5,139.43,4.0]
[1641662123138,5.73481726,139.5,139.4,4.0]
[1641662123539,1.792,139.52,139.46,4.0]
[1641662123739,5.73341424,139.54,139.46,4.0]
[1641662124139,5.73341424,139.54,139.45,27.66479]
[1641662124538,5.73341424,139.54,139.48,4.0]
[1641662124741,7.52441424,139.54,139.49,4.0]
[1641662124943,5.73341424,139.54,139.47,4.0]
[1641662125141,5.73341424,139.54,139.48,4.0]
[1641662125341,5.73341424,139.54,139.46,4.0]
[1641662125744,7.52541424,139.54,139.46,4.0]
[1641662126043,7.52541424,139.54,139.5,4.0]
[1641662126243,89.0,139.57,139.53,4.0]
[1641662126445,89.0,139.57,139.56,4.0]
[1641662126846,8.24997112,139.64,139.56,4.0]
[1641662127046,48.60028485,139.64,139.55,4.0]
[1641662127248,40.35031373,139.64,139.63,4.0]
[1641662127447,11.35031373,139.64,139.63,4.0]
[1641662127647,11.35031373,139.64,139.6,27.66479]
[1641662127848,11.35031373,139.64,139.52,11.16383695]
[1641662128050,7.52072231,139.63,139.52,11.16383695]
[1641662128449,7.52072231,139.63,139.56,4.0]
[1641662128649,5.72972231,139.63,139.52,11.16383695]
[1641662128851,7.16512019,139.65,139.52,11.16383695]
[1641662129150,7.16512019,139.65,139.58,4.0]
[1641662129351,7.16512019,139.65,139.57,4.0]
[1641662129554,7.16512019,139.65,139.57,27.66479]
[1641662129753,1.791,139.67,139.57,27.66479]
[1641662129952,8.95509356,139.67,139.59,4.0]
[1641662130154,7.16409356,139.67,139.57,27.66479]
[1641662130657,119.44637426,139.7,139.66,4.0]
[1641662130658,90.79,139.7,139.66,4.0]
[1641662130855,89.0,139.7,139.61,4.0]
[1641662131655,15.02013308,139.75,139.69,8.0]
[1641662131855,43.86980542,139.83,139.74,4.0]
[1641662132155,28.04980542,139.83,139.72,4.0]
[1641662132457,8.80918619,139.82,139.77,4.0]
[1641662132656,8.80918619,139.82,139.74,7.15512307]
[1641662133457,22.12766415,139.81,139.7,11.15717149]
[1641662133658,22.12766415,139.81,139.76,27.66479]
[1641662133857,20.33966415,139.81,139.76,27.66479]
[1641662134156,1.788,139.83,139.77,4.0]
[1641662134356,1.788,139.85,139.77,4.0]
[1641662134556,1.788,139.85,139.76,27.66479]
[1641662135556,27.66479,139.83,139.75,7.1548671]
[1641662135756,1.788,139.82,139.75,7.1548671]
[1641662135957,1.788,139.82,139.73,8.61099]
[1641662136158,1.788,139.83,139.75,7.15461115]
[1641662136560,1.788,139.85,139.75,7.15461115]
[1641662136758,4.0,139.8,139.73,8.61099]
[1641662136958,4.0,139.8,139.75,7.1548671]
[1641662137159,1.788,139.85,139.75,7.1548671]
[1641662137359,1.788,139.87,139.75,7.1548671]
[1641662137559,1.788,139.87,139.78,27.66479]
[1641662138058,7.50788203,139.87,139.78,27.66479]
[1641662138259,4.0,139.81,139.74,65.5731]
[1641662138459,4.0,139.77,139.66,1.786]
[1641662138659,4.0,139.77,139.65,4.0]
[1641662138660,4.0,139.77,139.7,7.15742762]
[1641662138860,5.789,139.82,139.7,7.15742762]
[1641662139064,4.0,139.77,139.7,7.15742762]
[1641662139262,4.0,139.77,139.67,28.62971048]
[1641662139263,1.789,139.82,139.73,7.15563506]
[1641662139461,1.788,139.83,139.69,4.0]
[1641662139662,6.86520465,139.84,139.75,7.1548671]
[1641662140064,6.86520465,139.84,139.79,7.15256419]
[1641662140464,1.788,139.87,139.79,7.15256419]
[1641662140662,8.23424849,139.91,139.79,7.15256419]
[1641662140663,1.786,139.9,139.79,7.15256419]
[1641662140864,10.02024849,139.91,139.79,4.0]
[1641662141062,12.23193105,139.95,139.85,7.14949596]
[1641662141063,1.786,139.94,139.85,7.14949596]
[1641662141264,12.23193105,139.95,139.85,7.14949596]
[1641662141464,12.23193105,139.95,139.87,7.1484738]
[1641662141668,5.71673747,139.94,139.87,7.1484738]
[1641662141866,5.71673747,139.94,139.86,34.81403039]
[1641662141867,11.50273747,139.94,139.86,34.81403039]
[1641662142166,4.0,139.93,139.86,27.66479]
[1641662142366,7.50273747,139.94,139.86,27.66479]
[1641662142568,11.50273747,139.94,139.86,27.66479]
[1641662142766,1.786,139.92,139.85,7.14975155]
[1641662143368,7.50395907,139.92,139.85,7.14975155]
[1641662143571,5.71795907,139.92,139.85,7.14975155]
[1641662144270,5.71795907,139.92,139.87,7.1484738]
[1641662144470,5.71592438,139.96,139.9,7.14719651]
[1641662144870,5.71592438,139.96,139.85,4.0]
[1641662144871,5.71592438,139.96,139.86,4.0]
[1641662145072,1.786,140.01,139.93,7.14540907]
[1641662145272,5.71462669,140.0,139.93,7.14540907]
[1641662145472,1.786,140.03,139.93,7.14540907]
[1641662145672,4.0,140.04,139.95,27.66479]
[1641662145673,4.0,140.02,139.95,27.66479]
[1641662145870,4.0,140.01,139.93,27.66479]
[1641662146071,4.0,139.94,139.88,67.0489]
[1641662146371,5.71661288,139.95,139.87,28.58776444]
[1641662146571,5.71783652,139.92,139.87,28.58776444]
[1641662146972,1.786,139.94,139.86,4.0]
[1641662147173,1.786,140.01,139.93,7.14489854]
[1641662147372,5.71378342,140.02,139.93,7.14489854]
[1641662147575,5.71378342,140.02,139.84,1.786]
[1641662147774,5.71543552,139.98,139.88,34.81300831]
[1641662148075,9.71543552,139.98,139.88,34.81300831]
[1641662148274,4.0,139.95,139.88,34.81300831]
[1641662148475,5.7167418,139.94,139.88,27.66479]
[1641662148674,5.71429829,140.0,139.9,7.14694111]
[1641662149072,1.786,139.99,139.9,7.14694111]
[1641662149274,5.71555637,139.97,139.9,7.14694111]
[1641662149677,5.7159476,139.96,139.91,27.66479]
[1641662149875,5.7159476,139.96,139.92,7.14591968]
[1641662150077,6.85687514,140.01,139.92,7.14591968]
[1641662150275,5.71357892,140.02,139.92,7.14591968]
[1641662150675,5.71357892,140.02,139.94,7.14489854]
[1641662151678,5.71357892,140.02,139.95,27.66479]
[1641662154679,5.71357892,140.02,139.97,7.14336738]
[1641662156579,11.49632797,140.05,139.97,7.14336738]
[1641662156782,4.0,139.99,139.91,99.8773152]
[1641662157079,4.0,139.95,139.87,7.1484738]
[1641662157279,9.7164348,139.95,139.79,4.0]
[1641662157479,9.7164348,139.95,139.85,7.14949596]
[1641662157679,4.0,139.94,139.86,27.66479]
[1641662157882,9.7164348,139.95,139.86,27.66479]
[1641662158179,5.7164348,139.95,139.86,27.66479]
[1641662158981,5.7164348,139.95,139.88,7.14821831]
[1641662159182,1.786,139.98,139.92,7.14617501]
[1641662159382,5.71527703,139.98,139.92,7.14617501]
[1641662159882,7.50127703,139.98,139.92,7.14617501]
[1641662160181,4.0,140.04,139.95,7.14438808]
[1641662160385,4.0,140.04,139.93,7.14540907]
[1641662160583,4.0,139.99,139.93,7.14540907]
[1641662160783,5.7136329,140.02,139.93,7.14540907]
[1641662160982,5.7147529,139.99,139.93,7.14540907]
[1641662161584,5.786,140.03,139.93,7.14540907]
[1641662161884,5.71405177,140.01,139.95,27.66479]
[1641662163385,15.04618154,140.03,139.95,27.66479]
[1641662163586,15.04618154,140.03,139.96,7.1438777]
[1641662163786,15.04618154,140.04,140.0,34.80688192]
[1641662163985,48.35720867,140.07,140.03,7.14030703]
[1641662164787,4.0,140.06,140.03,7.14030703]
[1641662164987,9.71107596,140.08,140.03,7.14030703]
[1641662165187,5.71227446,140.05,140.03,7.14030703]
[1641662165387,5.784,140.07,140.03,7.14030703]
[1641662165597,5.71092591,140.09,140.03,7.14030703]
[1641662165791,2.05383443,140.07,140.03,7.14030703]
[1641662166791,2.05383443,140.08,140.03,7.14030703]
[1641662167393,6.05383443,140.08,140.0,55.32958]
[1641662167591,4.0,140.08,140.0,55.32958]
[1641662167991,7.83783443,140.1,140.0,55.32958]
[1641662168193,5.71138871,140.08,140.01,7.14158186]
[1641662168391,1.784,140.07,140.01,7.14158186]
[1641662168592,3.83783443,140.07,140.01,7.14158186]
[1641662168991,7.83783443,140.07,140.01,7.14158186]
[1641662169292,3.83783443,140.07,140.01,7.14158186]
[1641662169691,2.05383443,140.06,140.03,27.66479]
[1641662169891,2.05383443,140.06,140.03,19.54452956]
[1641662170290,2.05383443,140.06,140.03,26.68509152]
[1641662170792,2.05383443,140.07,140.03,26.68509152]
[1641662171591,2.05383443,140.1,140.03,26.68509152]
[1641662171792,2.05383443,140.1,140.03,54.34988152]
[1641662172593,5.71031687,140.1,140.03,54.34988152]
[1641662172994,5.71032734,140.1,140.03,54.34988152]
[1641662173396,5.71032734,140.1,140.04,4.0]
[1641662173594,2.05383443,140.09,140.06,7.13903266]
[1641662173794,2.05383443,140.09,140.08,7.13801349]
[1641662174396,2.05383443,140.09,140.07,27.66479]
[1641662174596,1.784,140.12,140.07,27.66479]
[1641662174795,5.70997013,140.11,140.07,27.66479]
[1641662175396,7.76436366,140.1,140.07,27.66479]
[1641662175798,7.76436366,140.1,140.08,27.66479]
[1641662176297,2.05383443,140.09,140.08,34.80280349]
[1641662176896,39.56376643,140.14,140.08,38.80280349]
[1641662177095,39.56376643,140.14,140.09,4.0]
[1641662177296,8.79344224,140.17,140.08,34.80280349]
[1641662177497,8.79344224,140.17,140.16,7.1331764]
[1641662177896,8.79344224,140.17,140.16,27.66479]
[1641662178096,8.79344224,140.17,140.16,34.79872972]
[1641662178296,39.56376643,140.18,140.16,34.79872972]
[1641662178498,39.56376643,140.19,140.16,34.79872972]
[1641662179796,78.33086286,140.23,140.16,34.79872972]
[1641662179797,17.00880127,140.23,140.16,34.79872972]
[1641662180599,21.00880127,140.23,140.16,34.79872972]
[1641662180800,12.21535903,140.23,140.16,34.79872972]
[1641662181001,5.70584019,140.21,140.16,34.79872972]
[1641662181200,4.0,140.2,140.16,34.79872972]
[1641662181401,5.70702209,140.18,140.16,34.79872972]
[1641662182299,5.70702209,140.18,140.16,27.66479]
[1641662182499,11.41418819,140.18,140.16,27.66479]
[1641662182799,5.7071661,140.18,140.16,27.66479]
[1641662183901,1.782,140.21,140.16,34.79847526]
[1641662184101,4.0,140.2,140.16,34.79847526]
[1641662184699,9.7065074,140.2,140.16,34.79847526]
[1641662185098,5.7065074,140.2,140.16,34.79847526]
[1641662186299,4.0,140.22,140.16,34.79847526]
[1641662186501,9.99735903,140.23,140.16,34.79847526]
[1641662186800,9.99735903,140.23,140.18,7.132922]
[1641662186999,1.782,140.25,140.21,7.1311417]
[1641662187199,46.40819656,140.27,140.21,7.1311417]
[1641662187400,5.70456342,140.24,140.21,7.1311417]
[1641662188301,4.0,140.22,140.16,27.66479]
[1641662188503,4.0,140.17,140.16,27.66479]
[1641662188700,5.70736143,140.17,140.12,76.06162142]
[1641662189502,5.70736143,140.17,140.12,7.13572142]
[1641662189902,5.70736143,140.17,140.12,34.80051142]
[1641662190103,4.0,140.18,140.12,34.80051142]
[1641662190104,5.70780869,140.16,140.12,34.80051142]
[1641662190503,5.70903969,140.13,140.1,27.66479]
[1641662190905,5.70903969,140.13,140.09,7.13750401]
[1641662191502,5.70903969,140.13,140.08,7.13801349]
[1641662191808,5.70977106,140.12,140.08,7.13801349]
[1641662193003,5.7104662,140.1,140.08,7.13801349]
[1641662193804,4.0,140.09,140.04,27.66479]
[1641662194007,9.71122746,140.08,140.04,7.13979723]
[1641662194205,5.784,140.07,140.04,7.13979723]
[1641662194507,5.71234209,140.05,139.98,69.7284]
[1641662195307,5.71144309,140.07,139.99,7.14209192]
[1641662195806,5.71144309,140.07,139.99,34.80688192]
[1641662196605,9.7125794,140.05,139.99,7.14209192]
[1641662197808,5.7125794,140.05,139.99,7.14209192]
[1641662198907,9.7125794,140.05,139.99,7.14209192]
[1641662199109,5.7125794,140.05,139.99,7.14209192]
[1641662199409,9.7125794,140.05,139.99,7.14209192]
[1641662199610,4.0,140.04,139.97,27.66479]
[1641662199808,5.71361031,140.02,139.97,27.66479]
[1641662200208,5.71403345,140.01,139.97,27.66479]
[1641662201009,20.77841021,140.07,140.0,4.0]
[1641662201209,15.06696712,140.07,140.0,7.14158186]
[1641662201809,42.73175712,140.07,139.98,7.14234698]
[1641662202009,15.06696712,140.07,139.98,7.14234698]
[1641662202211,4.0,140.05,139.98,7.14234698]
[1641662202410,9.71240656,140.05,139.98,7.14234698]
[1641662202610,5.71403245,140.01,139.98,7.14234698]
[1641662203211,5.71403245,140.01,139.97,55.32958]
[1641662203811,1.784,140.05,139.97,55.32958]
[1641662204212,4.0,139.99,139.94,7.14438808]
[1641662204415,1.786,139.98,139.92,7.14566437]
[1641662204613,5.71690658,139.94,139.92,7.14566437]
[1641662204814,9.71690658,139.94,139.87,110.16013149]
[1641662205012,5.71849542,139.9,139.86,39.56376643]
[1641662205313,5.71849542,139.9,139.86,19.06824667]
[1641662205511,5.71661288,139.95,139.86,15.06824667]
[1641662205913,5.71661288,139.95,139.88,27.66479]
[1641662206113,5.7173758,139.93,139.88,27.66479]
[1641662206614,4.0,139.92,139.83,7.14949596]
[1641662206815,1.786,139.94,139.83,7.14949596]
[1641662206816,5.71851812,139.9,139.83,7.14949596]
[1641662207215,5.71643074,139.95,139.89,4.0]
[1641662207419,1.786,139.99,139.89,7.14668572]
[1641662207615,27.66479,140.0,139.89,7.14668572]
[1641662207915,1.786,139.99,139.9,27.66479]
[1641662208115,4.0,139.95,139.9,27.66479]
[1641662208316,1.786,139.94,139.9,27.66479]
[1641662208717,1.786,139.94,139.88,27.66479]
[1641662208916,1.786,139.99,139.86,7.14796283]
[1641662209518,1.786,139.99,139.89,7.14668572]
[1641662209717,1.786,140.01,139.89,11.14668572]
[1641662209920,1.786,140.02,139.93,27.66479]
[1641662210119,4.0,139.99,139.93,27.66479]
[1641662210518,4.0,140.01,139.93,27.66479]
[1641662210719,1.786,140.0,139.93,27.66479]
[1641662210918,1.786,140.03,139.94,7.14413288]
[1641662211118,102.83271184,140.05,139.94,7.14413288]
[1641662211119,1.784,140.04,139.94,7.14413288]
[1641662211317,1.784,140.04,139.97,7.14260205]
[1641662211519,1.784,140.04,139.99,7.14132686]
[1641662211719,39.56376643,140.06,139.99,7.14132686]
[1641662211919,39.56376643,140.06,140.03,27.66479]
[1641662212421,39.56376643,140.06,139.97,64.6452]
[1641662212620,1.784,140.05,139.97,64.6452]
[1641662212820,4.0,140.08,139.97,64.6452]
[1641662213020,5.7118389,140.06,139.97,64.6452]
[1641662213721,4.0,140.04,139.97,64.6452]
[1641662213921,4.0,140.05,139.96,34.80790225]
[1641662214121,5.784,140.04,139.96,34.80790225]
[1641662214321,4.0,140.03,139.96,34.80790225]
[1641662214827,9.71351813,140.02,139.96,34.80790225]
[1641662215024,5.71351813,140.02,139.98,7.14183688]
[1641662215823,5.71351813,140.02,139.99,27.66479]
[1641662216726,5.71212209,140.06,139.99,27.66479]
[1641662217026,1.784,140.05,139.99,27.66479]
[1641662217427,5.71276767,140.04,139.99,27.66479]
[1641662217629,9.71276767,140.04,139.96,27.66479]
[1641662217828,5.71394999,140.01,139.96,27.66479]
[1641662219230,5.71459369,140.0,139.96,27.66479]
[1641662221034,5.71394999,140.01,139.96,27.66479]
[1641662222034,5.71394999,140.01,139.96,55.32958]
[1641662222836,1.784,140.05,139.96,55.32958]
[1641662223039,1.784,140.05,140.01,7.14030703]
[1641662223335,39.56376643,140.1,140.04,7.13903266]
[1641662223736,39.56376643,140.1,140.06,7.13775874]
[1641662224136,5.03271373,140.1,140.09,27.66479]
[1641662224538,9.03271373,140.1,140.02,1.784]
[1641662224738,4.0,140.07,140.0,7.14081691]
[1641662225037,7.49600204,140.06,140.0,7.14081691]
[1641662225638,5.71200204,140.06,139.99,7.14158186]
[1641662226037,5.7113273,140.08,140.01,27.66479]
[1641662226240,7.4953273,140.08,140.01,27.66479]
[1641662226438,1.784,140.11,140.04,7.13877784]
[1641662226639,1.784,140.11,140.02,4.0]
[1641662226842,5.03271373,140.08,140.06,7.13801349]
[1641662227943,5.70945043,140.12,140.06,7.13801349]
[1641662228142,5.03271373,140.13,140.08,27.66479]
[1641662228944,5.03271373,140.14,140.08,27.66479]
[1641662229144,4.0,140.1,140.01,67.5774]
[1641662229345,5.71100606,140.09,140.01,65.7934]
[1641662229545,1.784,140.08,140.01,65.7934]
[1641662229745,7.49503918,140.08,139.98,7.14183688]
[1641662229946,5.71103918,140.08,139.98,7.14183688]
[1641662230247,27.66479,140.1,140.0,27.66479]
[1641662230547,27.66479,140.1,140.0,31.66479]
[1641662230745,1.784,140.11,140.01,11.14056196]
[1641662230945,1.784,140.11,140.01,7.14056196]
[1641662231145,1.784,140.11,140.01,11.14056196]
[1641662231346,5.03271373,140.1,140.01,11.14056196]
[1641662231747,9.03271373,140.1,140.01,11.14056196]
[1641662231948,4.0,140.07,140.01,7.14056196]
[1641662232150,4.0,140.07,140.0,27.66479]
[1641662232349,1.784,140.07,140.0,27.66479]
[1641662232750,1.784,140.07,139.96,7.14285714]
[1641662232751,5.71264454,140.05,139.96,7.14285714]
[1641662233052,11.49664454,140.05,139.96,7.14285714]
[1641662233251,5.71264454,140.05,139.96,7.14285714]
[1641662234252,5.71264454,140.05,139.97,27.66479]
[1641662234451,11.49664454,140.05,139.97,27.66479]
[1641662234652,11.49664454,140.05,139.96,7.14285714]
[1641662235052,7.49664454,140.05,139.95,27.66479]
[1641662235254,11.49664454,140.05,139.95,27.66479]
[1641662236554,16.52935827,140.05,139.95,27.66479]
[1641662236953,12.52935827,140.05,139.95,27.66479]
[1641662237453,5.03271373,140.04,139.95,27.66479]
[1641662238455,12.52935827,140.05,139.95,27.66479]
[1641662238654,10.74535827,140.05,139.95,27.66479]
[1641662238953,10.74535827,140.05,139.94,34.80892288]
[1641662239154,5.71353057,140.02,139.94,27.66479]
[1641662239355,5.71475253,139.99,139.93,67.7964]
[1641662239554,5.71475253,139.99,139.89,28.5806152]
[1641662239555,4.0,139.94,139.9,15.05968674]
[1641662239754,5.71675833,139.94,139.9,15.05968674]
[1641662239955,4.0,139.93,139.9,15.05968674]
[1641662240155,5.786,139.93,139.9,15.05968674]
[1641662240557,1.786,139.93,139.86,30.63701282]
[1641662240758,5.71675833,139.94,139.86,30.63701282]
[1641662240959,8.64471922,139.97,139.86,30.63701282]
[1641662241161,6.85871922,139.97,139.86,34.63701282]
[1641662241458,4.0,139.95,139.86,30.63701282]
[1641662241658,5.71759988,139.92,139.87,2.97222282]
[1641662242661,5.71807528,139.91,139.86,2.97222282]
[1641662242859,7.50407528,139.91,139.86,2.97222282]
[1641662243059,5.71807528,139.91,139.86,2.97222282]
[1641662243864,5.71807528,139.91,139.85,2.97222282]
[1641662244062,1.786,139.9,139.85,2.97222282]
[1641662244261,5.71807528,139.91,139.85,2.97222282]
[1641662244961,5.71807528,139.91,139.82,30.63701282]
[1641662245161,5.71807528,139.91,139.83,7.14975155]
[1641662245762,1.786,139.94,139.85,7.14872931]
[1641662245963,34.52353192,139.97,139.87,7.14745193]
[1641662245964,5.03271373,139.96,139.87,7.14745193]
[1641662246363,5.03271373,139.96,139.87,34.81224193]
[1641662246662,5.03271373,139.96,139.87,27.66479]
[1641662246962,5.71725412,139.93,139.83,1.786]
[1641662247162,1.786,139.92,139.82,49.87448389]
[1641662247364,5.71725412,139.93,139.82,49.87448389]
[1641662247765,5.786,139.92,139.82,49.87448389]
[1641662247963,5.786,139.92,139.83,2.96635408]
[1641662248163,5.71896252,139.89,139.83,2.96635408]
[1641662249464,6.86088911,139.93,139.88,7.14719651]
[1641662249663,27.66479,139.97,139.88,7.14719651]
[1641662249863,6.81871373,139.98,139.88,7.14719651]
[1641662250063,5.03271373,139.98,139.88,4.0]
[1641662250263,5.03271373,139.98,139.93,7.14438808]
[1641662250464,5.03271373,139.98,139.94,27.66479]
[1641662250866,5.03271373,139.99,139.94,27.66479]
[1641662251763,7.49901744,140.04,139.94,27.66479]
[1641662252163,1.784,140.05,139.94,31.66479]
[1641662252362,34.48150373,140.06,139.99,27.66479]
[1641662252963,32.69750373,140.06,139.99,27.66479]
[1641662253565,27.66479,140.06,139.99,27.66479]
[1641662254865,5.71241425,140.05,139.95,7.14336738]
[1641662255064,7.49641425,140.05,139.95,7.14336738]
[1641662255865,11.49641425,140.05,139.95,7.14336738]
[1641662256065,11.49641425,140.05,139.94,27.66479]
[1641662256265,4.0,140.0,139.94,27.66479]
[1641662256466,5.71368156,140.02,139.94,27.66479]
[1641662257265,1.784,140.03,139.96,7.14311225]
[1641662257466,5.03271373,140.04,139.96,7.14311225]
[1641662257668,5.03271373,140.05,139.96,7.14311225]
[1641662258266,5.03271373,140.05,139.99,4.0]
[1641662258468,5.03271373,140.05,140.0,7.14107187]
[1641662258669,5.03271373,140.07,140.04,27.66479]
[1641662259968,5.03271373,140.09,140.04,27.66479]
[1641662260568,5.03271373,140.09,140.08,27.66479]